fUSD/lending_fUSD_20260108
["ID","MTS","AMOUNT","RATE_DAILY","PERIOD"]
[400912495,1767861046420,-1252.0,0.00016766,2]
[400912497,1767861046430,-500.0,0.00016792,2]
[400912499,1767861046440,-211.64498178,0.00016792,2]
[400912501,1767861046449,-150.0,0.000168,2]
[400912503,1767861046458,-157.72323008,0.0001682,2]
[400912505,1767861046467,-150.0,0.00016846,2]
[400912507,1767861046476,-500.0,0.00016846,2]
[400912509,1767861046486,-169.91289357,0.00016878,2]
[400912511,1767861046495,-312.84,0.00016887,2]
[400912513,1767861046505,-600.0,0.00016887,2]
[400912515,1767861046514,-150.0,0.00016892,2]
[400912517,1767861046524,-500.0,0.00016901,2]
[400912519,1767861046533,-276.82311961,0.00016914,2]
[400912521,1767861046542,-150.0,0.00016938,2]
[400912523,1767861046552,-2500.0,0.00016954,2]
[400912525,1767861046561,-2005.81602002,0.00016954,2]
[400912527,1767861046571,-2500.0,0.00016954,2]
[400912529,1767861046581,-2500.0,0.00016954,2]
[400912531,1767861046590,-2500.0,0.00016954,2]
[400912533,1767861046599,-2500.0,0.00016954,2]
[400912535,1767861046609,-2500.0,0.00016954,2]
[400912537,1767861046619,-2500.0,0.00016954,2]
[400912539,1767861046628,-2500.0,0.00016954,2]
[400912541,1767861046637,-231.23799714,0.00016956,2]
[400912543,1767861046646,-1619.28,0.00016959,2]
[400912545,1767861046656,-150.0,0.00016985,2]
[400912547,1767861046665,-514.77,0.00016986,2]
[400912549,1767861046675,-500.0,0.00016986,2]
[400912551,1767861046684,-250.0,0.00017,2]
[400912553,1767861046693,-869.72272338,0.0001703,2]
[400912555,1767861046703,-150.0,0.00017031,2]
[400912557,1767861046712,-162.0,0.0001704,2]
[400912559,1767861046722,-150.0,0.00017077,2]
[400912561,1767861046732,-1000.0,0.000171,2]
[400912563,1767861046741,-20452.74518303,0.000171,2]
[400912565,1767861046750,-395.53901856,0.000171,2]
[400912567,1767861046760,-1000.0,0.00017112,2]
[400912569,1767861046769,-1246.4,0.00017119,2]
[400912571,1767861046779,-150.0,0.00017123,2]
[400912573,1767861046788,-5242.82669963,0.00017126,2]
[400912575,1767861046797,-2276.96201759,0.0001713,2]
[400912577,1767861046806,-150.0,0.00017169,2]
[400912579,1767861046815,-200.0,0.00017174,2]
[400912581,1767861046825,-1152.0,0.00017195,2]
[400912583,1767861046834,-1152.0,0.00017195,2]
[400912585,1767861046843,-1246.4,0.00017199,2]
[400912587,1767861046853,-150.0,0.00017215,2]
[400912589,1767861046862,-15064.07141285,0.00017226,2]
[400912591,1767861046871,-1619.42682616,0.00017233,2]
[400912593,1767861046881,-17139.32837656,0.00017237,2]
[400912595,1767861046890,-150.0,0.00017262,2]
[400912597,1767861046899,-769.41,0.00017269,2]
[400912599,1767861046908,-1246.4,0.00017279,2]
[400912601,1767861046918,-740.38982778,0.00017288,2]
[400912603,1767861046927,-4401.0,0.00017291,2]
[400912605,1767861046936,-469.50438451,0.00017302,2]
[400912607,1767861046946,-150.0,0.00017308,2]
[400912609,1767861046956,-2419.22,0.00017315,2]
[400912611,1767861046966,-4609.0,0.00017323,2]
[400912613,1767861046976,-150.0,0.00017354,2]
[400912615,1767861046985,-1246.4,0.00017359,2]
[400912617,1767861046994,-162.0,0.0001736,2]
[400912619,1767861047004,-162.0,0.0001736,2]
[400912621,1767861047015,-833.0,0.0001736,2]
[400912623,1767861047025,-833.0,0.0001736,2]
[400912625,1767861047034,-162.0,0.0001736,2]
[400912627,1767861047043,-833.0,0.0001736,2]
[400912629,1767861047052,-162.0,0.0001736,2]
[400912631,1767861047061,-552.0,0.0001736,2]
[400912633,1767861047071,-162.0,0.0001736,2]
[400912635,1767861047080,-157.72323008,0.00017362,2]
[400912637,1767861047090,-3467.0,0.00017376,2]
[400912639,1767861047099,-164.07,0.00017395,2]
[400912641,1767861047110,-150.0,0.000174,2]
[400912643,1767861047119,-1000.0,0.000174,2]
[400912645,1767861047129,-1246.4,0.00017439,2]
[400912647,1767861047138,-150.0,0.00017446,2]
[400912649,1767861047147,-869.72272337,0.00017465,2]
[400912651,1767861047156,-150.0,0.00017492,2]
[400912653,1767861047166,-1600.92502348,0.000175,2]
[400912655,1767861047175,-395.53901856,0.000175,2]
[400912657,1767861047185,-3000.0,0.00017502,2]
[400912659,1767861047195,-356.56087805,0.00017502,2]
[400912662,1767861047204,-3020.5636209,0.00017502,2]
[400912664,1767861047214,-3000.0,0.00017502,2]
[400912665,1767861047223,-3000.0,0.00017502,2]
[400912667,1767861047233,-681.44262662,0.00017502,2]
[400912670,1767861047243,-1487.99755872,0.00017502,2]
[400912672,1767861047253,-976.3156368,0.00017502,2]
[400912674,1767861047263,-1246.4,0.00017519,2]
[400912676,1767861047273,-1042.30773041,0.00017534,2]
[400912678,1767861047283,-150.0,0.00017538,2]
[400912680,1767861047295,-359.76179104,0.00017559,2]
[400912682,1767861047305,-691.39774486,0.00017559,2]
[400912684,1767861047314,-150.0,0.00017585,2]
[400912685,1767861047323,-1246.4,0.000176,2]
[400912687,1767861047332,-150.0,0.00017631,2]
[400912689,1767861047342,-11515.04832561,0.0001764,2]
[400912691,1767861047352,-150.0,0.00017677,2]
[400912693,1767861047362,-162.0,0.0001768,2]
[400912695,1767861047372,-833.0,0.0001768,2]
[400912697,1767861047381,-833.0,0.0001768,2]
[400912699,1767861047390,-833.0,0.0001768,2]
[400912701,1767861047400,-833.0,0.0001768,2]
[400912703,1767861047409,-1246.4,0.0001768,2]
[400912705,1767861047419,-162.0,0.0001768,2]
[400912707,1767861047428,-192.52,0.00017697,2]
[400912709,1767861047438,-514.77,0.00017699,2]
[400912711,1767861047447,-5546.79765656,0.000177,2]
[400912713,1767861047457,-1000.0,0.000177,2]
[400912715,1767861047466,-1000.0,0.00017709,2]
[400912717,1767861047475,-150.0,0.00017723,2]
[400912719,1767861047484,-1246.4,0.0001776,2]
[400912721,1767861047494,-150.0,0.00017769,2]
[400912723,1767861047504,-514.77,0.00017776,2]
[400912725,1767861047514,-25000.0,0.00017777,3]
[400912727,1767861047523,-7052.45701752,0.0001778,2]
[400912729,1767861047532,-25000.0,0.00017786,3]
[400912731,1767861047541,-25000.0,0.00017794,3]
[400912733,1767861047551,-25000.0,0.00017803,3]
[400912735,1767861047560,-204.0,0.00017808,3]
[400912737,1767861047569,-25000.0,0.00017812,3]
[400912739,1767861047582,-150.0,0.00017815,2]
[400912741,1767861047591,-25000.0,0.00017821,3]
[400912743,1767861047600,-25000.0,0.0001783,3]
[400912745,1767861047610,-767.7842514,0.00017836,2]
[400912747,1767861047620,-514.77,0.00017838,2]
[400912749,1767861047630,-25000.0,0.00017838,3]
[400912751,1767861047640,-1246.4,0.0001784,2]
[400912753,1767861047649,-482.63,0.00017841,2]
[400912755,1767861047660,-482.63,0.00017841,2]
[400912757,1767861047669,-482.63,0.00017841,2]
[400912759,1767861047679,-539.57,0.00017841,2]
[400912761,1767861047689,-965.26,0.00017841,2]
[400912763,1767861047699,-482.63,0.00017841,2]
[400912765,1767861047710,-482.63,0.00017841,2]
[400912767,1767861047719,-482.63,0.00017841,2]
[400912769,1767861047729,-482.63,0.00017841,2]
[400912772,1767861047739,-4401.0,0.00017843,2]
[400912774,1767861047748,-25000.0,0.00017847,3]
[400912776,1767861047758,-200.0,0.00017855,2]
[400912778,1767861047767,-200.0,0.00017856,2]
[400912780,1767861047776,-200.0,0.00017856,2]
[400912781,1767861047785,-200.0,0.00017856,2]
[400912783,1767861047795,-200.0,0.00017856,2]
[400912785,1767861047804,-25000.0,0.00017856,3]
[400912787,1767861047813,-150.0,0.00017862,2]
[400912790,1767861047823,-25000.0,0.00017865,3]
[400912792,1767861047832,-177.4888516,0.00017872,3]
[400912794,1767861047841,-25000.0,0.00017874,3]
[400912795,1767861047850,-25000.0,0.00017882,3]
[400912798,1767861047859,-10000.0,0.00017889,2]
[400912799,1767861047869,-25000.0,0.00017891,3]
[400912802,1767861047879,-514.77,0.00017899,2]
[400912804,1767861047888,-7838.25914785,0.000179,3]
[400912806,1767861047899,-869.72272337,0.000179,2]
[400912808,1767861047908,-25000.0,0.000179,3]
[400912810,1767861047918,-17139.32837656,0.000179,2]
[400912812,1767861047927,-15064.07141285,0.000179,2]
[400912814,1767861047936,-2295.79903135,0.000179,2]
[400912816,1767861047946,-395.53901856,0.000179,2]
[400912818,1767861047955,-15166.0,0.000179,2]
[400912820,1767861047965,-157.72323008,0.00017905,2]
[400912822,1767861047976,-150.0,0.00017908,2]
[400912824,1767861047986,-1246.4,0.0001792,2]
[400912826,1767861047995,-150.0,0.00017954,2]
[400912828,1767861048007,-769.41,0.0001796,2]
[400912829,1767861048016,-500.0,0.00017973,2]
[400912832,1767861048026,-500.0,0.00017973,2]
[400912834,1767861048035,-500.0,0.00017973,2]
[400912835,1767861048044,-500.75581913,0.00017973,2]
[400912837,1767861048053,-500.0,0.00017973,2]
[400912839,1767861048062,-150.0,0.00017973,2]
[400912841,1767861048071,-500.0,0.00017973,2]
[400912843,1767861048081,-426.73386812,0.00017973,2]
[400912846,1767861048090,-150.49880534,0.00017973,2]
[400912848,1767861048100,-500.0,0.00017973,2]
[400912850,1767861048109,-500.0,0.00017973,2]
[400912852,1767861048119,-500.17178809,0.00017973,2]
[400912854,1767861048128,-500.0,0.00017973,2]
[400912855,1767861048137,-500.0,0.00017973,2]
[400912858,1767861048146,-500.0,0.00017973,2]
[400912859,1767861048155,-385.16009683,0.00017973,2]
[400912861,1767861048164,-500.0,0.00017973,2]
[400912863,1767861048174,-338.62982115,0.00017973,2]
[400912865,1767861048183,-500.0,0.00017973,2]
[400912867,1767861048193,-500.0,0.00017973,2]
[400912870,1767861048202,-501.18870733,0.00017973,2]
[400912872,1767861048212,-500.0,0.00017973,2]
[400912874,1767861048221,-500.0,0.00017973,2]
[400912875,1767861048230,-150.0,0.00017973,2]
[400912877,1767861048240,-152.75103688,0.00017982,2]
[400912879,1767861048249,-500.0,0.00017982,2]
[400912882,1767861048259,-1561.43224408,0.0001799,2]
[400912884,1767861048268,-1561.43224408,0.0001799,2]
[400912886,1767861048277,-200.589792,0.00017997,2]
[400912887,1767861048290,-171.18779201,0.00017999,2]
[400912890,1767861048300,-514.77,0.00017999,2]
[400912891,1767861048309,-514.77,0.00017999,2]
[400912893,1767861048319,-514.77,0.00017999,2]
[400912895,1767861048330,-514.77,0.00017999,2]
[400912898,1767861048339,-514.77,0.00017999,2]
[400912899,1767861048349,-514.77,0.00017999,2]
[400912901,1767861048361,-514.77,0.00017999,2]
[400912903,1767861048371,-514.77,0.00017999,2]
[400912905,1767861048380,-514.77,0.00017999,2]
[400912908,1767861048390,-514.77,0.00017999,2]
[400912910,1767861048400,-514.77,0.00017999,2]
[400912912,1767861048410,-514.96716988,0.00017999,2]
[400912914,1767861048420,-300.0,0.00017999,2]
[400912916,1767861048430,-300.0,0.00017999,2]
[400912918,1767861048439,-666.0,0.00017999,2]
[400912920,1767861048448,-300.0,0.00017999,2]
[400912922,1767861048458,-300.0,0.00017999,2]
[400912924,1767861048467,-666.0,0.00017999,2]
[400912926,1767861048477,-154.67877044,0.00018,2]
[400912928,1767861048486,-4988254.37365147,0.00018,2]
[400912930,1767861048501,-3619.89584989,0.00018,2]
[400912942,1767861048605,-999.0,0.00018,2]
[400912947,1767861048636,-6816.65431873,0.00018,2]
[400912949,1767861048647,-169504.25225104,0.00018,2]
[400912951,1767861048658,-15972.94042967,0.00018,2]
[400912953,1767861048669,-821.0,0.00018,2]
[400912965,1767861048766,-181.76985236,0.00011832,2]
[400912987,1767861049045,-318.23014764,0.00011832,2]
[400912988,1767861049080,-17.09409831,0.00011832,2]
[400912989,1767861049092,-482.90590169,0.00011832,2]
[400912990,1767861049101,-500.0,0.00011832,2]
[400912991,1767861049111,-500.0,0.00011832,2]
[400912993,1767861049120,-500.0,0.00011832,2]
[400912995,1767861049130,-500.0,0.00011832,2]
[400912997,1767861049140,-500.0,0.00011832,2]
[400912999,1767861049149,-330.91480413,0.00011832,2]
[400913001,1767861049159,-500.0,0.00011832,2]
[400913003,1767861049169,-500.0,0.00011832,2]
[400913005,1767861049179,-500.0,0.00011832,2]
[400913007,1767861049189,-500.0,0.00011832,2]
[400913009,1767861049199,-500.0,0.00011832,2]
[400913011,1767861049208,-25000.0,0.00017768,3]
[400913013,1767861049218,-3854259.052319,0.00018,2]
[400913015,1767861049228,-196382.48957006,0.00018,2]
[400913087,1767861049910,-1.7e-07,0.00018,2]
[400913092,1767861049947,-15000.0,0.00018,2]
[400913095,1767861049959,-438.28224015,0.00018,2]
[400913172,1767861050702,-975.81752712,0.00017376,2]
[400913186,1767861050836,10000.01,0.00011733,2]
[400913196,1767861050930,10000.01,0.00011733,2]
[400913201,1767861050966,154.76462354,0.00011733,2]
[400913206,1767861051000,320.524098,0.00011733,2]
[400913228,1767861051205,-200.0,0.00011733,2]
[400913326,1767861052233,-288.11984291,0.00011733,2]
[400913594,1767861054920,-152.90274074,0.00011733,2]
[400913819,1767861057543,-322.16513308,0.00011733,2]
[400914036,1767861059588,-452.27880143,0.00011733,2]
[400914170,1767861061023,-257.47850945,0.00011733,2]
[400914245,1767861062960,-210.73445015,0.00011733,2]
[400914257,1767861065597,-303.91570653,0.00011733,2]
[400914262,1767861069830,-168.55203038,0.00011733,2]
[400914263,1767861071229,-325.26576385,0.00011733,2]
[400914264,1767861075780,-499.0217169,0.00011733,2]
[400914265,1767861078834,-282.7774489,0.00011733,2]
[400914266,1767861079876,-303.73131223,0.00011733,2]
[400914267,1767861081357,-250.0,0.00011733,2]
[400914268,1767861085437,-174.55203038,0.00011733,2]
[400914269,1767861086970,-281.27730079,0.00011733,2]
[400914270,1767861090105,-292.83246587,0.00011733,2]
[400914271,1767861092775,-500.0,0.00011733,2]
[400914272,1767861093091,167.921,0.00011498,2]
[400914273,1767861093210,-386.08903256,0.00011633,2]
[400914274,1767861093422,2324.778,0.00011498,2]
[400914275,1767861093561,-9227.83193488,0.00011733,2]
[400914276,1767861094257,-618.98128919,0.00011733,2]
[400914277,1767861094702,-10000.01,0.00011733,2]
[400914278,1767861095036,-10000.01,0.00011733,2]
[400914279,1767861096280,-157.47850945,0.00011733,2]
[400914280,1767861097812,-10000.01,0.00011733,2]
[400914281,1767861098866,-205.90101924,0.00011733,2]
[400914282,1767861101228,-250.0,0.00011733,2]
[400914283,1767861101329,-10000.01,0.00011733,2]
[400914284,1767861101432,-10000.01,0.00011733,2]
[400914285,1767861101734,-10000.01,0.00011733,2]
[400914286,1767861102044,-10000.01,0.00011733,2]
[400914287,1767861102519,-10000.01,0.00011733,2]
[400914288,1767861102871,-10000.01,0.00011733,2]
[400914289,1767861103250,-10000.01,0.00011733,2]
[400914290,1767861104072,-214.34140696,0.00011733,2]
[400914291,1767861106682,-230.60854268,0.00011733,2]
[400914292,1767861106928,-10000.01,0.00011733,2]
[400914293,1767861110128,-191.90720398,0.00011733,2]
[400914294,1767861112253,-304.05195059,0.00011733,2]
[400914295,1767861117698,-161.41992823,0.00011733,2]
[400914296,1767861120405,-188.929543,0.00011733,2]
[400914297,1767861122669,-10000.01,0.00011732,2]
[400914299,1767861125233,-442.21273673,0.00011732,2]
[400914300,1767861126747,-188.86471918,0.00011732,2]
[400914301,1767861127954,-1422.11977687,0.00011732,2]
[400914302,1767861128030,-7155.77044626,0.00011732,2]
[400914303,1767861128779,-195.69246571,0.00011733,2]
[400914305,1767861133235,-200.0,0.00011733,2]
[400914306,1767861134762,-192.52149055,0.00011733,2]
[400914307,1767861137468,-186.65484852,0.00011733,2]
[400914308,1767861140834,-254.79681484,0.00011733,2]
[400914309,1767861143039,-300.0,0.00011733,2]
[400914310,1767861145178,-293.25580285,0.00011733,2]
[400914312,1767861148906,-252.70396908,0.00011733,2]
[400914313,1767861151043,-275.79732422,0.00011733,2]
[400914314,1767861152841,-310.10312473,0.00011733,2]
[400914315,1767861156713,-250.0,0.00011733,2]
[400914316,1767861160025,-315.92294073,0.00011733,2]
[400914318,1767861164635,-200.0,0.00011733,2]
[400914319,1767861167613,-301.02208221,0.00011633,2]
[400914320,1767861167643,-4.42511712,0.00011733,2]
[400914321,1767861169233,-305.52403129,0.00011733,2]
[400914322,1767861172382,-242.10266155,0.00011733,2]
[400914323,1767861173911,-300.0,0.00011733,2]
[400914324,1767861176478,-356.66185142,0.00011733,2]
[400914326,1767861177842,-10000.01,0.00011733,2]
[400914327,1767861180875,-305.6613102,0.00011733,2]
[400914328,1767861182918,-300.0,0.00011732,2]
[400914329,1767861182941,-1.88640204,0.00011732,2]
[400914330,1767861184432,-298.11359796,0.00011732,2]
[400914331,1767861184457,-1.88640204,0.00011732,2]
[400914332,1767861189438,-148.11359796,0.00011732,2]
[400914333,1767861189582,-9703.78280408,0.00011733,2]
[400914334,1767861189668,-211.87054949,0.00011733,2]
[400914335,1767861191725,-1117.10427879,0.00011733,2]
[400914337,1767861193410,-205.92016426,0.00011733,2]
[400914338,1767861196782,-316.66,0.00011732,2]
[400914339,1767861198231,-479.42632757,0.00011732,2]
[400914345,1767861205843,-187.54007036,0.00011732,2]
[400914352,1767861208405,-247.0,0.00011633,2]
[400914354,1767861213178,-168.91999983,0.00011633,2]
[400914355,1767861214635,-303.05554958,0.00011633,2]
[400914356,1767861218928,-211.34,0.00011633,2]
[400914357,1767861222034,-226.05225167,0.00011633,2]
[400914358,1767861225629,-152.90274,0.00011633,2]
[400914360,1767861230290,-166.66,0.00011633,2]
[400914361,1767861232988,-372.34501122,0.00011633,2]
[400914362,1767861238610,-200.0,0.00011633,2]
[400914363,1767861240211,-177.00021117,0.00011633,2]
[400914365,1767861241844,-300.0,0.00011632,2]
[400914366,1767861241872,-200.0,0.00011633,2]
[400914367,1767861242047,-10000.01,0.00011633,2]
[400914368,1767861244900,339.64088346,0.00011574,2]
[400914369,1767861244924,2975.19574954,0.00011574,2]
[400914370,1767861247457,-300.0,0.00011633,2]
[400914371,1767861247577,-10000.01,0.00011633,2]
[400914372,1767861248937,-255.0,0.00011633,2]
[400914373,1767861252824,-218.2465622,0.00011633,2]
[400914374,1767861254314,-281.5853752,0.00011633,2]
[400914375,1767861255827,-583.05402309,0.00011633,2]
[400914376,1767861261603,-356.74382834,0.00011633,2]
[400914377,1767861266964,-282.09576913,0.00011633,2]
[400914378,1767861271383,-276.73143042,0.00011633,2]
[400914379,1767861272772,-254.35832743,0.00011633,2]
[400914380,1767861277379,-386.81447302,0.00011633,2]
[400914387,1767861284542,-181.83775549,0.00011633,2]
[400914391,1767861286663,-263.2098759,0.00011633,2]
[400914392,1767861287853,-406.03393071,0.00011633,2]
[400914393,1767861291971,-181.83775549,0.00011633,2]
[400914394,1767861293533,-407.47958521,0.00011633,2]
[400914395,1767861297515,-250.0,0.00011633,2]
[400914396,1767861300263,-271.1910972,0.00011633,2]
[400914397,1767861302301,-195.0,0.00011632,2]
[400914398,1767861303795,-75.0,0.00011632,2]
[400914399,1767861303821,-490.41502559,0.00011632,2]
[400914400,1767861305316,-249.60024016,0.00011632,2]
[400914401,1767861310014,-318.16224451,0.00011632,2]
[400914402,1767861312444,-141.82248974,0.00011632,2]
[400914403,1767861312470,-64.30751026,0.00011632,2]
[400914404,1767861318143,151.0,0.000328,120]
[400914405,1767861319583,151.0,0.000328,120]
[400914406,1767861321642,1260.0,0.000328,120]
[400914415,1767861361204,1000.0,0.00011307,2]
[400914416,1767861389904,-235.69248974,0.00011632,2]
[400914417,1767861389934,-300.0,0.00011632,2]
[400914418,1767861389964,-150.0,0.00011632,2]
[400914419,1767861389992,-195.0,0.00011632,2]
[400914420,1767861390023,-250.0,0.00011632,2]
[400914421,1767861390052,-242.28038878,0.00011633,2]
[400914422,1767861390082,-2500.0,0.00011633,2]
[400914423,1767861390223,-2254.06424296,0.00011633,2]
[400914424,1767861390282,-10000.01,0.00011633,2]
[400914425,1767861390297,-6326.28296834,0.00011633,2]
[400914426,1767861390307,-3673.72703166,0.00011633,2]
[400914427,1767861392556,-10000.01,0.00011633,2]
[400914428,1767861409336,2160.0,0.00032876,120]
[400914433,1767861429456,1292.01049254,0.00011218,2]
[400914434,1767861429485,5267.20624208,0.00011218,2]
[400914435,1767861429510,4913.14326538,0.00011218,2]
[400914439,1767861458664,-300.0,0.00011632,2]
[400914440,1767861458694,-195.0,0.00011632,2]
[400914441,1767861458723,-300.0,0.00011633,2]
[400914442,1767861458754,-2173.8075154,0.00011633,2]
[400914443,1767861458817,-4062.3949692,0.00011633,2]
[400914444,1767861458897,-367.94106167,0.00011633,2]
[400914445,1767861458927,-195.0,0.00011639,2]
[400914446,1767861458955,-195.0,0.0001164,2]
[400914447,1767861458986,-300.0,0.00011656,2]
[400914448,1767861459014,-300.0,0.00011656,2]
[400914449,1767861459043,-300.0,0.00011656,2]
[400914450,1767861459076,-366.30299542,0.00011667,2]
[400914451,1767861459105,-894.33,0.00011708,2]
[400914452,1767861459135,-151.0,0.00011726,2]
[400914453,1767861459167,-151.0,0.00011726,2]
[400914454,1767861459196,-151.0,0.00011726,2]
[400914455,1767861459225,-151.0,0.00011726,2]
[400914456,1767861459253,-151.0,0.00011726,2]
[400914457,1767861459281,-151.0,0.00011726,2]
[400914458,1767861459310,-151.0,0.00011726,2]
[400914459,1767861459340,-500.0,0.00011726,2]
[400914460,1767861459369,-151.0,0.00011726,2]
[400914461,1767861459399,-151.0,0.00011726,2]
[400914462,1767861459687,-444.86188582,0.00011726,2]
[400914463,1767861461665,-55.13811418,0.00011726,2]
[400914464,1767861461694,-151.0,0.00011726,2]
[400914465,1767861461722,-500.0,0.00011726,2]
[400914466,1767861461750,-151.0,0.00011726,2]
[400914467,1767861461780,-151.0,0.00011726,2]
[400914468,1767861461813,-500.0,0.00011726,2]
[400914469,1767861461844,-151.0,0.00011726,2]
[400914470,1767861461874,-151.0,0.00011726,2]
[400914471,1767861461905,-500.0,0.00011726,2]
[400914472,1767861461936,-151.0,0.00011726,2]
[400914473,1767861461965,-151.0,0.00011726,2]
[400914474,1767861461993,-500.0,0.00011726,2]
[400914475,1767861462024,-151.0,0.00011726,2]
[400914476,1767861462054,-151.0,0.00011726,2]
[400914477,1767861462082,-500.0,0.00011726,2]
[400914478,1767861462110,-151.0,0.00011726,2]
[400914479,1767861462140,-633.89985627,0.00011726,2]
[400914480,1767861462169,-151.0,0.00011726,2]
[400914481,1767861462199,-148.9340591,0.00011726,2]
[400914482,1767861463031,-2.0659409,0.00011726,2]
[400914483,1767861473766,-151.0,0.00011726,2]
[400914484,1767861473796,-151.0,0.00011726,2]
[400914485,1767861473824,-151.0,0.00011726,2]
[400914486,1767861473854,-151.0,0.00011726,2]
[400914487,1767861473882,-151.0,0.00011726,2]
[400914488,1767861473911,-151.0,0.00011726,2]
[400914489,1767861473939,-151.0,0.00011726,2]
[400914490,1767861473968,-151.0,0.00011726,2]
[400914491,1767861473997,-151.0,0.00011726,2]
[400914492,1767861474355,-200.0,0.00011726,2]
[400914493,1767861474383,-151.0,0.00011726,2]
[400914494,1767861474412,-500.0,0.00011726,2]
[400914495,1767861474444,-234.79954054,0.00011726,2]
[400914496,1767861474473,-151.0,0.00011726,2]
[400914497,1767861474504,-216.37360207,0.00011732,2]
[400914498,1767861474534,-1619.28,0.00011732,2]
[400914499,1767861474561,-252.0,0.00011732,2]
[400914500,1767861475671,-633.10371478,0.00011733,2]
[400914501,1767861479790,-10000.01,0.00011733,2]
[400914505,1767861486219,-300.0,0.00011732,2]
[400914506,1767861486309,-9400.01,0.00011733,2]
[400914507,1767861520147,-2500.0,0.00011633,2]
[400914508,1767861520176,-356.21070167,0.00011633,2]
[400914509,1767861520204,-356.21070167,0.00011633,2]
[400914510,1767861520232,-1200.0,0.00011732,2]
[400914511,1767861520261,-195.0,0.00011732,2]
[400914512,1767861520349,-785.16719332,0.00011733,2]
[400914513,1767861520386,-10000.01,0.00011733,2]
[400914514,1767861526247,-10000.01,0.00011733,2]
[400914515,1767861526275,-10000.01,0.00011733,2]
[400914520,1767861573455,354.0629767,0.00011478,2]
[400914521,1767861573480,250.5370233,0.00011478,2]
[400914522,1767861597840,5016.66921878,0.00011423,2]
[400914523,1767861597862,5267.20624208,0.00011423,2]
[400914524,1767861597884,5267.20624208,0.00011423,2]
[400914525,1767861597905,5267.20624208,0.00011423,2]
[400914526,1767861598408,-189.83615086,0.00011423,2]
[400914527,1767861600488,-164.48363446,0.00011423,2]
[400914528,1767861604065,-237.1398076,0.00011422,2]
[400914529,1767861605807,-62.8601924,0.00011422,2]
[400914530,1767861605830,-176.00002228,0.00011422,2]
[400914531,1767861637987,-293.03618238,0.00011109,2]
[400914532,1767861641549,-249.00116379,0.00011064,2]
[400914533,1767861643913,-258.6558289,0.00011064,2]
[400914534,1767861646284,-262.8601924,0.00011064,2]
[400914535,1767861648405,-317.65263784,0.00011064,2]
[400914536,1767861654578,-441.03587444,0.00011064,2]
[400914537,1767861657338,-311.08932954,0.00011064,2]
[400914539,1767861659986,-270.83112151,0.00011064,2]
[400914540,1767861663236,-280.3278616,0.00011064,2]
[400914541,1767861664294,-325.81889168,0.00011064,2]
[400914542,1767861673054,-188.43739283,0.00011064,2]
[400914543,1767861676369,-228.74371549,0.00011064,2]
[400914544,1767861679236,-300.0,0.00011064,2]
[400914545,1767861680847,-225.77854245,0.00011064,2]
[400914546,1767861682955,-36.11744753,0.00011064,2]
[400914547,1767861682986,-159.76951838,0.00011109,2]
[400914548,1767861686117,-156.91018668,0.00011109,2]
[400914549,1767861687816,-505.62633521,0.00011109,2]
[400914550,1767861691700,151.0,0.00010907,2]
[400914551,1767861691727,1701.42,0.00010907,2]
[400914552,1767861692002,-211.45476909,0.00011109,2]
[400914553,1767861694455,-321.61320066,0.00011109,2]
[400914554,1767861696743,-225.27615223,0.00011109,2]
[400914556,1767861699795,-302.0,0.00011109,2]
[400914558,1767861704199,-386.63369957,0.00011109,2]